fUST/lending_fUST_20240309
["ID","MTS","AMOUNT","RATE_DAILY","PERIOD"]
[317829519,1709944232021,-1606.2288853,0.00020033,2]
[317829521,1709944232031,-5000.0,0.00020033,5]
[317829523,1709944232041,-176.41411874,0.00020034,2]
[317829524,1709944232051,-401.30154956,0.00020034,2]
[317829525,1709944232061,-539.02796676,0.00020034,2]
[317829527,1709944232070,-324.16244002,0.00020035,2]
[317829529,1709944232081,-181.91480018,0.00020035,2]
[317829531,1709944232091,-528.48551733,0.00020036,2]
[317829532,1709944232100,-15253.15738836,0.00020038,2]
[317829534,1709944232110,-152.0,0.00021311,2]
[317829535,1709944232122,-16485.4608536,0.00021714,2]
[317829536,1709944232132,-24300.28301146,0.00022639,2]
[317829537,1709944232141,-159.34656768,0.00022739,2]
[317829538,1709944232151,-1000.0,0.00022739,6]
[317829539,1709944232161,-178.75501938,0.00022739,2]
[317829540,1709944232171,-6956.14,0.00022739,2]
[317829541,1709944232181,-6956.14,0.00022739,2]
[317829542,1709944232192,-6956.14,0.00022739,2]
[317829543,1709944232203,-6956.14,0.00022739,2]
[317829544,1709944232214,-6956.14,0.00022739,2]
[317829545,1709944232224,-1827.58195847,0.00022739,2]
[317829595,1709944237769,-5128.55804153,0.00022739,2]
[317829597,1709944237778,-261.61163101,0.00022739,2]
[317829599,1709944237791,-6694.52836899,0.00022739,2]
[317829601,1709944237800,-6956.14,0.00022739,2]
[317829603,1709944237809,-6956.14,0.00022739,2]
[317829605,1709944237819,-6956.14,0.00022739,2]
[317829607,1709944237828,-2488.51818765,0.00022739,2]
[317830438,1709944246555,-22.32884639,0.00022739,2]
[317831656,1709944334711,-194.57554749,0.0002,2]
[317831657,1709944334732,-400.0,0.0002,2]
[317831658,1709944334760,-225.42445251,0.0002,2]
[317831659,1709944405531,-20501.31418915,0.00019898,2]
[317831660,1709944405555,-155.13807288,0.00019898,2]
[317831661,1709944424138,3395.54773797,0.00019898,2]
[317831663,1709944475791,-1473.92538483,0.00019897,2]
[317831664,1709944475814,-1604.45226203,0.00019898,2]
[317831665,1709944479853,3336.62235314,0.00019897,2]
[317831666,1709944634422,278.955353,0.0001891,2]
[317831667,1709944666467,-175.0,0.00024,30]
[317831670,1709944751520,-324.16244002,0.00019872,2]
[317831671,1709944751540,-745.65931905,0.00019872,2]
[317831672,1709944751561,-186.40511874,0.00019873,2]
[317831673,1709944751582,-176.41411874,0.00019873,2]
[317831674,1709944751602,-211.97574014,0.00019874,2]
[317831675,1709944751623,-401.30154956,0.00019874,2]
[317831676,1709944751644,-300.0,0.00019874,2]
[317831677,1709944751667,-528.48551733,0.00019875,2]
[317831678,1709944751689,-5000.0,0.00019875,2]
[317831679,1709944751710,-155.13807288,0.00019876,2]
[317831680,1709944751732,-1950.95817719,0.00019876,2]
[317831681,1709944751754,-15136.49994635,0.00019876,2]
[317831682,1709944829537,-539.02796676,0.00019866,2]
[317831683,1709944829557,-624.13231565,0.00019867,2]
[317831684,1709944829577,-595.99810704,0.00019867,2]
[317831685,1709944829597,-191.4800443,0.00019867,2]
[317831686,1709944829621,-2114.49634581,0.00019868,2]
[317831687,1709944829642,-558.21645623,0.00019869,2]
[317831688,1709944829663,-3425.78734782,0.00019899,2]
[317831689,1709944829689,-8250.86141639,0.0002,2]
[317831690,1709945148256,409.92842182,0.000189,2]
[317831691,1709945218232,154.82890648,0.00018429,2]
[317831694,1709945339482,-175.0,0.0002413,35]
[317831865,1709945438013,-624.13231565,0.00019975,2]
[317831867,1709945438023,-163.32544229,0.00019975,2]
[317831869,1709945438032,-186.40511874,0.00019976,2]
[317831871,1709945438041,-211.97574014,0.00019977,2]
[317831873,1709945438050,-3185.09590718,0.00019977,2]
[317831875,1709945438062,-11903.6658968,0.00019977,2]
[317832083,1709945440076,-176.41411874,0.00019974,2]
[317832085,1709945440085,-164.39558438,0.00019977,2]
[317832087,1709945440095,-595.99810704,0.00019978,2]
[317832089,1709945440104,-5000.0,0.00019978,2]
[317832091,1709945440114,-7683.9747163,0.0002,2]
[317832093,1709945440123,-165.965425,0.0002057,2]
[317832095,1709945440133,-238.84175043,0.00021241,2]
[317832098,1709945440142,-170.0,0.00022,2]
[317832099,1709945440151,-157.3240075,0.00022191,2]
[317832101,1709945440162,-170.0,0.00022192,2]
[317832103,1709945440171,-63.52992526,0.000222,2]
[317832105,1709945440185,-242.47007474,0.000222,2]
[317832107,1709945440194,-200.9491361,0.000222,2]
[317832109,1709945440205,-171.14680015,0.00022511,2]
[317832111,1709945440214,-306.0,0.000226,2]
[317832113,1709945440223,-200.9491361,0.000226,2]
[317832114,1709945440231,-200.7576938,0.000226,2]
[317832116,1709945440240,-234.8877,0.00022625,2]
[317832118,1709945440249,-1000.88077508,0.00022637,2]
[317832120,1709945440258,-3591.13200154,0.00022638,2]
[317832122,1709945440270,-3918.59599823,0.00022638,2]
[317832124,1709945440280,-6607.5765043,0.00022639,2]
[317832126,1709945440290,-6100.53835948,0.00022639,2]
[317832128,1709945440299,-35816.21419214,0.0002268,6]
[317832130,1709945440309,-300.0,0.000227,10]
[317832131,1709945440318,-500.0,0.00022738,2]
[317832133,1709945440327,-500.0,0.00022738,2]
[317832135,1709945440336,-500.0,0.00022738,2]
[317832137,1709945440345,-408.55191974,0.00022738,2]
[317832147,1709945440438,-261.99443606,0.00022738,2]
[317832149,1709945440450,-500.0,0.00022738,2]
[317832151,1709945440460,-500.0,0.00022738,2]
[317832153,1709945440469,-500.0,0.00022738,2]
[317832155,1709945440478,-500.0,0.00022738,2]
[317832157,1709945440487,-500.0,0.00022738,2]
[317832158,1709945440497,-500.0,0.00022738,2]
[317832160,1709945440506,-500.0,0.00022738,2]
[317832162,1709945440516,-500.0,0.00022738,2]
[317832164,1709945440525,-500.0,0.00022738,2]
[317832166,1709945440534,-429.473926,0.00022738,2]
[317832168,1709945440543,-500.0,0.00022738,2]
[317832169,1709945440553,-500.0,0.00022738,2]
[317832171,1709945440562,-500.0,0.00022738,2]
[317832173,1709945440570,-500.0,0.00022738,2]
[317832175,1709945440579,-500.0,0.00022738,2]
[317832177,1709945440588,-500.0,0.00022738,2]
[317832179,1709945440597,-500.0,0.00022738,2]
[317832181,1709945440606,-500.0,0.00022738,2]
[317832182,1709945440615,-450.43342915,0.00022738,2]
[317832184,1709945440624,-273.06499348,0.00022738,2]
[317832186,1709945440632,-175.95396094,0.00022738,2]
[317832188,1709945440641,-500.0,0.00022738,2]
[317832190,1709945440650,-520.55412576,0.00022738,2]
[317832192,1709945440659,-276.84141771,0.00022739,3]
[317832194,1709945440668,-500.0,0.00022739,2]
[317832196,1709945440677,-500.0,0.00022739,2]
[317832198,1709945440687,-500.0,0.00022739,2]
[317832199,1709945440696,-515.06248666,0.00022739,2]
[317832201,1709945440705,-500.0,0.00022739,2]
[317832203,1709945440714,-500.0,0.00022739,2]
[317832205,1709945440723,-500.0,0.00022739,2]
[317832207,1709945440732,-442.91982761,0.00022739,2]
[317832209,1709945440741,-500.0,0.00022739,2]
[317832210,1709945440749,-188.33221354,0.00022739,2]
[317832212,1709945440758,-500.0,0.00022739,2]
[317832214,1709945440767,-500.0,0.00022739,2]
[317832216,1709945440776,-500.0,0.00022739,2]
[317832218,1709945440785,-500.0,0.00022739,2]
[317832220,1709945440793,-500.0,0.00022739,2]
[317832222,1709945440802,-289.70954919,0.00022739,2]
[317832223,1709945440811,-500.0,0.00022739,2]
[317832225,1709945440820,-500.0,0.00022739,2]
[317832227,1709945440829,-500.0,0.00022739,2]
[317832229,1709945440838,-500.0,0.00022739,2]
[317832231,1709945440850,-500.0,0.00022739,2]
[317832233,1709945440859,-500.0,0.00022739,2]
[317832235,1709945440868,-500.0,0.00022739,2]
[317832237,1709945440876,-500.0,0.00022739,2]
[317832238,1709945440885,-500.0,0.00022739,2]
[317832240,1709945440894,-500.0,0.00022739,2]
[317832242,1709945440905,-500.0,0.00022739,2]
[317832244,1709945440914,-500.0,0.00022739,2]
[317832246,1709945440923,-500.0,0.00022739,2]
[317832248,1709945440933,-500.0,0.00022739,2]
[317832250,1709945440942,-500.0,0.00022739,2]
[317832251,1709945440951,-500.0,0.00022739,2]
[317832253,1709945440960,-500.0,0.00022739,2]
[317832255,1709945440969,-763.09,0.00022739,2]
[317832257,1709945440979,-763.09,0.00022739,2]
[317832259,1709945440990,-763.09,0.00022739,2]
[317832260,1709945440999,-763.09,0.00022739,2]
[317832262,1709945441008,-763.09,0.00022739,2]
[317832264,1709945441017,-763.09,0.00022739,2]
[317832266,1709945441027,-763.09,0.00022739,2]
[317832268,1709945441036,-763.09,0.00022739,2]
[317832270,1709945441046,-763.09,0.00022739,2]
[317832272,1709945441055,-763.09,0.00022739,2]
[317832274,1709945441064,-763.09,0.00022739,2]
[317832276,1709945441074,-763.09,0.00022739,2]
[317832278,1709945441083,-501.33502304,0.00022739,2]
[317832280,1709945441092,-343.57875641,0.00022739,2]
[317832282,1709945441102,-502.12022041,0.00022739,2]
[317832284,1709945441111,-502.57846069,0.00022739,2]
[317832286,1709945441120,-500.0,0.00022739,2]
[317832287,1709945441129,-500.0,0.00022739,2]
[317832289,1709945441138,-504.08595731,0.00022739,2]
[317832291,1709945441148,-504.88498422,0.00022739,2]
[317832293,1709945441158,-500.0,0.00022739,2]
[317832295,1709945441167,-500.0,0.00022739,2]
[317832297,1709945441176,-500.0,0.00022739,2]
[317832299,1709945441186,-268.74640655,0.00022739,2]
[317832301,1709945441194,-399.67792884,0.00022739,2]
[317832302,1709945441203,-504.63914315,0.00022739,2]
[317832304,1709945441213,-500.0,0.00022739,2]
[317832306,1709945441223,-500.0,0.00022739,2]
[317832308,1709945441232,-191.9365285,0.00022739,2]
[317832310,1709945441241,-500.0,0.00022739,2]
[317832312,1709945441250,-564.48433871,0.00022739,2]
[317832314,1709945441259,-394.92094177,0.00022739,2]
[317832316,1709945441269,-500.0,0.00022739,2]
[317832317,1709945441278,-500.0,0.00022739,2]
[317832319,1709945441287,-170.32188205,0.00022739,2]
[317832321,1709945441296,-500.0,0.00022739,2]
[317832323,1709945441305,-500.0,0.00022739,2]
[317832325,1709945441314,-500.52431377,0.00022739,2]
[317832327,1709945441323,-500.0,0.00022739,2]
[317832329,1709945441333,-500.0,0.00022739,2]
[317832331,1709945441342,-188.525693,0.00022739,2]
[317832333,1709945441351,-188.525693,0.00022739,2]
[317832335,1709945441360,-188.525693,0.00022739,2]
[317832337,1709945441369,-188.525693,0.00022739,2]
[317832339,1709945441378,-188.525693,0.00022739,2]
[317832341,1709945441387,-188.525693,0.00022739,2]
[317832343,1709945441397,-188.525693,0.00022739,2]
[317832344,1709945441406,-188.525693,0.00022739,2]
[317832345,1709945441416,-188.525693,0.00022739,2]
[317832347,1709945441425,-188.525693,0.00022739,2]
[317832349,1709945441434,-188.525693,0.00022739,2]
[317832351,1709945441443,-188.525693,0.00022739,2]
[317832353,1709945441452,-188.525693,0.00022739,2]
[317832355,1709945441461,-188.525693,0.00022739,2]
[317832356,1709945441470,-188.525693,0.00022739,2]
[317832358,1709945441479,-188.525693,0.00022739,2]
[317832360,1709945441488,-188.525693,0.00022739,2]
[317832362,1709945441497,-188.525693,0.00022739,2]
[317832364,1709945441507,-188.525693,0.00022739,2]
[317832366,1709945441516,-188.525687,0.00022739,2]
[317832368,1709945441526,-500.0,0.00022739,2]
[317832370,1709945441536,-500.0,0.00022739,2]
[317832372,1709945441545,-500.0,0.00022739,2]
[317832373,1709945441554,-640.88636733,0.00022739,2]
[317832375,1709945441565,-500.0,0.00022739,2]
[317832377,1709945441574,-500.0,0.00022739,2]
[317832379,1709945441584,-500.0,0.00022739,2]
[317832381,1709945441593,-598.95792449,0.00022739,2]
[317832383,1709945441603,-151.0,0.00022739,2]
[317832384,1709945441611,-277.652747,0.00022739,2]
[317832386,1709945441621,-244.64201417,0.00022739,2]
[317832388,1709945441630,-500.0,0.00022739,2]
[317832390,1709945441639,-500.0,0.00022739,2]
[317832392,1709945441648,-500.0,0.00022739,2]
[317832394,1709945441657,-626.41136914,0.00022739,2]
[317832396,1709945441667,-364.53351083,0.00022739,2]
[317832397,1709945441676,-500.0,0.00022739,2]
[317832399,1709945441685,-500.0,0.00022739,2]
[317832401,1709945441694,-500.0,0.00022739,2]
[317832403,1709945441704,-500.0,0.00022739,2]
[317832405,1709945441713,-500.0,0.00022739,2]
[317832407,1709945441722,-500.0,0.00022739,2]
[317832408,1709945441732,-500.0,0.00022739,2]
[317832410,1709945441741,-500.0,0.00022739,2]
[317832412,1709945441750,-500.0,0.00022739,2]
[317832414,1709945441760,-500.0,0.00022739,2]
[317832416,1709945441768,-500.0,0.00022739,2]
[317832418,1709945441777,-500.0,0.00022739,2]
[317832420,1709945441786,-500.0,0.00022739,2]
[317832421,1709945441795,-928.2,0.00022739,2]
[317832423,1709945441804,-928.2,0.00022739,2]
[317832425,1709945441814,-928.2,0.00022739,2]
[317832427,1709945441824,-928.2,0.00022739,2]
[317832429,1709945441833,-928.2,0.00022739,2]
[317832430,1709945441844,-928.2,0.00022739,2]
[317832432,1709945441853,-928.2,0.00022739,2]
[317832434,1709945441863,-928.2,0.00022739,2]
[317832436,1709945441873,-928.2,0.00022739,2]
[317832438,1709945441882,-928.2,0.00022739,2]
[317832440,1709945441891,-928.2,0.00022739,2]
[317832441,1709945441900,-928.2,0.00022739,2]
[317832443,1709945441911,-928.2,0.00022739,2]
[317832445,1709945441921,-151.0,0.00022739,2]
[317832447,1709945441930,-151.0,0.00022739,2]
[317832449,1709945441939,-151.86454,0.00022739,2]
[317832450,1709945441948,-1054.64,0.00022739,2]
[317832452,1709945441957,-1054.64,0.00022739,2]
[317832454,1709945441966,-1054.64,0.00022739,2]
[317832456,1709945441975,-1054.64,0.00022739,2]
[317832458,1709945441985,-1054.64,0.00022739,2]
[317832459,1709945441994,-1054.64,0.00022739,2]
[317832461,1709945442004,-1054.64,0.00022739,2]
[317832463,1709945442014,-1054.64,0.00022739,2]
[317832465,1709945442023,-1054.64,0.00022739,2]
[317832467,1709945442034,-1054.64,0.00022739,2]
[317832469,1709945442043,-1054.64,0.00022739,2]
[317832471,1709945442052,-1054.64,0.00022739,2]
[317832472,1709945442061,-500.0,0.00022739,2]
[317832474,1709945442070,-500.0,0.00022739,2]
[317832476,1709945442080,-151.0,0.00022739,2]
[317832478,1709945442090,-151.0,0.00022739,2]
[317832480,1709945442099,-500.0,0.00022739,2]
[317832481,1709945442108,-500.0,0.00022739,2]
[317832483,1709945442118,-279.57873614,0.00022739,2]
[317832485,1709945442127,-4037.4,0.00022739,2]
[317832487,1709945442136,-4037.4,0.00022739,2]
[317832489,1709945442145,-4037.4,0.00022739,2]
[317832491,1709945442154,-4037.4,0.00022739,2]
[317832492,1709945442165,-4037.4,0.00022739,2]
[317832494,1709945442174,-4037.4,0.00022739,2]
[317832496,1709945442183,-4037.4,0.00022739,2]
[317832498,1709945442192,-500.0,0.00022739,2]
[317832500,1709945442201,-4037.4,0.00022739,2]
[317832502,1709945442211,-500.0,0.00022739,2]
[317832504,1709945442221,-1277.41227149,0.00022739,2]
[317832784,1709945444586,-607.44558979,0.0002,2]
[317832786,1709945444596,-4202.13001324,0.00020577,2]
[317832789,1709945444608,-1224.14744766,0.00020577,2]
[317832791,1709945444617,-2759.98772851,0.00022739,2]
[317832792,1709945444627,-4037.4,0.00022739,2]
[317832794,1709945444637,-500.0,0.00022739,2]
[317832797,1709945444646,-500.0,0.00022739,2]
[317832798,1709945444655,-4037.4,0.00022739,2]
[317832801,1709945444665,-4037.4,0.00022739,2]
[317832802,1709945444675,-500.0,0.00022739,2]
[317832804,1709945444684,-500.0,0.00022739,2]
[317832815,1709945444773,-4037.4,0.00022739,2]
[317832817,1709945444782,-500.0,0.00022739,2]
[317832819,1709945444791,-500.0,0.00022739,2]
[317832821,1709945444800,-500.0,0.00022739,2]
[317832823,1709945444809,-500.0,0.00022739,2]
[317832825,1709945444819,-500.0,0.00022739,2]
[317832827,1709945444829,-500.0,0.00022739,2]
[317832829,1709945444839,-500.0,0.00022739,2]
[317832831,1709945444849,-500.0,0.00022739,2]
[317832833,1709945444859,-500.0,0.00022739,2]
[317832835,1709945444867,-500.0,0.00022739,2]
[317832836,1709945444878,-500.0,0.00022739,2]
[317832838,1709945444887,-500.0,0.00022739,2]
[317832840,1709945444899,-500.0,0.00022739,2]
[317832842,1709945444909,-500.0,0.00022739,2]
[317832845,1709945444919,-500.0,0.00022739,2]
[317832846,1709945444929,-500.0,0.00022739,2]
[317832849,1709945444939,-500.0,0.00022739,2]
[317832850,1709945444948,-500.0,0.00022739,2]
[317832852,1709945444957,-478.32,0.00022739,2]
[317832854,1709945444966,-500.0,0.00022739,2]
[317832856,1709945444975,-500.0,0.00022739,2]
[317832858,1709945444984,-500.0,0.00022739,2]
[317832860,1709945444994,-188.1,0.00022739,2]
[317832862,1709945445003,-500.0,0.00022739,2]
[317832864,1709945445012,-517.22746166,0.00022739,2]
[317832866,1709945445021,-383.79843174,0.00022739,2]
[317832868,1709945445031,-500.0,0.00022739,2]
[317832870,1709945445040,-500.0,0.00022739,2]
[317832872,1709945445049,-500.0,0.00022739,2]
[317832874,1709945445058,-500.0,0.00022739,2]
[317832876,1709945445067,-415.26380944,0.00022739,2]
[317832878,1709945445078,-500.0,0.00022739,2]
[317832880,1709945445087,-500.0,0.00022739,2]
[317832882,1709945445097,-500.0,0.00022739,2]
[317832884,1709945445105,-500.0,0.00022739,2]
[317832886,1709945445115,-500.0,0.00022739,2]
[317832888,1709945445124,-500.0,0.00022739,2]
[317832890,1709945445132,-500.0,0.00022739,2]
[317832892,1709945445142,-500.0,0.00022739,2]
[317832894,1709945445150,-500.0,0.00022739,2]
[317832896,1709945445159,-500.0,0.00022739,2]
[317832898,1709945445168,-500.0,0.00022739,2]
[317832900,1709945445177,-500.0,0.00022739,2]
[317832902,1709945445186,-500.0,0.00022739,2]
[317832904,1709945445195,-500.0,0.00022739,2]
[317832906,1709945445205,-500.0,0.00022739,2]
[317832908,1709945445214,-151.0,0.00022739,2]
[317832910,1709945445223,-151.0,0.00022739,2]
[317832912,1709945445232,-500.0,0.00022739,2]
[317832914,1709945445241,-151.0,0.00022739,2]
[317832916,1709945445250,-500.0,0.00022739,2]
[317832918,1709945445259,-151.0,0.00022739,2]
[317832920,1709945445268,-151.0,0.00022739,2]
[317832922,1709945445277,-151.0,0.00022739,2]
[317832924,1709945445287,-151.0,0.00022739,2]
[317832925,1709945445298,-285.573678,0.00022739,2]
[317832927,1709945445309,-151.0,0.00022739,2]
[317832929,1709945445318,-151.0,0.00022739,2]
[317832931,1709945445327,-151.0,0.00022739,2]
[317832933,1709945445336,-500.0,0.00022739,2]
[317832935,1709945445346,-500.0,0.00022739,2]
[317832937,1709945445355,-500.0,0.00022739,2]
[317832939,1709945445364,-500.0,0.00022739,2]
[317832941,1709945445374,-500.0,0.00022739,2]
[317832943,1709945445383,-500.0,0.00022739,2]
[317832945,1709945445393,-500.0,0.00022739,2]
[317832947,1709945445402,-500.0,0.00022739,2]
[317832949,1709945445412,-500.0,0.00022739,2]
[317832951,1709945445421,-500.0,0.00022739,2]
[317832953,1709945445430,-500.0,0.00022739,2]
[317832955,1709945445438,-500.0,0.00022739,2]
[317832957,1709945445447,-500.0,0.00022739,2]
[317832959,1709945445456,-500.0,0.00022739,2]
[317832961,1709945445465,-500.0,0.00022739,2]
[317832963,1709945445474,-500.0,0.00022739,2]
[317832966,1709945445483,-500.0,0.00022739,2]
[317832969,1709945445492,-500.0,0.00022739,2]
[317832972,1709945445501,-500.0,0.00022739,2]
[317832974,1709945445509,-500.0,0.00022739,2]
[317832975,1709945445518,-500.0,0.00022739,2]
[317832977,1709945445527,-232.18135119,0.00022739,2]
[317832979,1709945445536,-1461.93,0.00022739,2]
[317832981,1709945445545,-1461.93,0.00022739,2]
[317832983,1709945445555,-1461.93,0.00022739,2]
[317832985,1709945445564,-1461.93,0.00022739,2]
[317832987,1709945445573,-1461.93,0.00022739,2]
[317832989,1709945445582,-1461.93,0.00022739,2]
[317832991,1709945445591,-1461.93,0.00022739,2]
[317832993,1709945445600,-500.0,0.00022739,2]
[317832995,1709945445611,-1461.93,0.00022739,2]
[317832997,1709945445621,-1461.93,0.00022739,2]
[317832999,1709945445630,-500.0,0.00022739,2]
[317833001,1709945445639,-1461.93,0.00022739,2]
[317833003,1709945445649,-500.0,0.00022739,2]
[317833005,1709945445658,-1461.93,0.00022739,2]
[317833007,1709945445667,-581.7,0.00022739,2]
[317833009,1709945445676,-500.0,0.00022739,2]
[317833011,1709945445686,-1461.93,0.00022739,2]
[317833012,1709945445695,-581.7,0.00022739,2]
[317833015,1709945445704,-500.0,0.00022739,2]
[317833018,1709945445713,-581.7,0.00022739,2]
[317833021,1709945445722,-500.0,0.00022739,2]
[317833024,1709945445732,-581.7,0.00022739,2]
[317833027,1709945445741,-581.7,0.00022739,2]
[317833030,1709945445750,-500.0,0.00022739,2]
[317833033,1709945445760,-581.7,0.00022739,2]
[317833036,1709945445769,-581.7,0.00022739,2]
[317833039,1709945445778,-581.7,0.00022739,2]
[317833042,1709945445787,-581.7,0.00022739,2]
[317833045,1709945445797,-581.7,0.00022739,2]
[317833048,1709945445809,-581.7,0.00022739,2]
[317833050,1709945445818,-581.7,0.00022739,2]
[317833053,1709945445829,-581.7,0.00022739,2]
[317833054,1709945445839,-603.93,0.00022739,2]
[317833056,1709945445849,-500.0,0.00022739,2]
[317833058,1709945445858,-500.0,0.00022739,2]
[317833061,1709945445872,-500.0,0.00022739,2]
[317833063,1709945445884,-500.0,0.00022739,2]
[317833065,1709945445895,-500.0,0.00022739,2]
[317833067,1709945445907,-500.0,0.00022739,2]
[317833069,1709945445920,-500.0,0.00022739,2]
[317833072,1709945445931,-500.0,0.00022739,2]
[317833074,1709945445942,-500.0,0.00022739,2]
[317833076,1709945445951,-500.92,0.00022739,2]
[317833078,1709945445961,-500.0,0.00022739,2]
[317833080,1709945445971,-500.0,0.00022739,2]
[317833082,1709945445982,-278.3,0.00022739,2]
[317833084,1709945445993,-500.0,0.00022739,2]
[317833086,1709945446004,-500.0,0.00022739,2]
[317833089,1709945446015,-255.34,0.00022739,2]
[317833091,1709945446027,-500.0,0.00022739,2]
[317833093,1709945446038,-500.0,0.00022739,2]
[317833095,1709945446049,-500.0,0.00022739,2]
[317833097,1709945446060,-500.0,0.00022739,2]
[317833099,1709945446071,-500.0,0.00022739,2]
[317833102,1709945446082,-500.0,0.00022739,2]
[317833104,1709945446093,-500.0,0.00022739,2]
[317833106,1709945446103,-500.0,0.00022739,2]
[317833108,1709945446114,-500.0,0.00022739,2]
[317833110,1709945446124,-288.58340459,0.00022739,2]
[317833111,1709945446222,-211.41659541,0.00022739,2]
[317833112,1709945446232,-500.0,0.00022739,2]
[317833113,1709945446242,-500.0,0.00022739,2]
[317833115,1709945446252,-79.05248449,0.00022739,2]
[317833142,1709945446543,-0.21437111,0.00022739,2]
[317835295,1709946643347,-745.65931905,0.00019194,2]
[317835297,1709946643357,-207.06371,0.00019195,2]
[317835299,1709946643366,-176.41411874,0.00019253,2]
[317835300,1709946643378,-539.02796676,0.00019254,2]
[317835302,1709946643387,-186.40511874,0.00019254,2]
[317835303,1709946643397,-1505.43013241,0.00019254,2]
[317835304,1709946643408,-2218.25608848,0.00019254,2]
[317835326,1709946646337,-262.67803637,0.00019194,7]
[317835327,1709946646348,-1276.31377911,0.00019254,2]
[317835328,1709946646358,-2114.49634581,0.00019255,2]
[317835329,1709946646368,-3599.22028076,0.0001926,2]
[317835330,1709946655839,589.98649327,0.000189,2]
[317835331,1709946712603,19016.32411745,0.000189,2]
[317835332,1709946727059,17549.77813474,0.000189,2]
[317835333,1709946727093,1466.54598271,0.000189,2]
[317835334,1709946732058,181.91480018,0.00018899,2]
[317835335,1709946734009,558.21645623,0.00018899,2]
[317835336,1709946743358,-211.97574014,0.00019253,2]
[317835337,1709946743379,-163.32544229,0.00019254,2]
[317835338,1709946743401,-1606.2288853,0.00019254,2]
[317835339,1709946743423,-401.30154956,0.00019255,2]
[317835340,1709946743444,-1950.95817719,0.00019255,2]
[317835341,1709946743548,-290.43712849,0.00019256,2]
[317835342,1709946743572,-324.16244002,0.00019256,2]
[317835343,1709946743593,-524.29941204,0.00019257,2]
[317835344,1709946743614,-15253.15738836,0.00019259,2]
[317835345,1709946743636,-21041.15383661,0.0001926,2]
[317835346,1709946749110,6793.32276088,0.000189,2]
[317835347,1709946833105,-1473.92538483,0.00018896,2]
[317835348,1709946833128,-155.13652014,0.00018896,2]
[317835349,1709946833151,-15333.58385325,0.00018897,2]
[317835350,1709946833176,-155.916356,0.00018897,2]
[317835351,1709946833205,-2597.41386237,0.00018898,2]
[317835352,1709946833229,-595.99810704,0.00018898,2]
[317835353,1709946833253,-1341.02591637,0.000189,2]
[317835354,1709946896218,3425.78734782,0.000188,2]
[317835355,1709946906441,-210.0,0.00018899,2]
[317835356,1709946906464,-3.5783975,0.000189,2]
[317835357,1709946906486,-8248.4216025,0.000189,2]
[317835361,1709947109275,-163.32544229,0.00018887,2]
[317835362,1709947109296,-324.16244002,0.00018887,2]
[317835363,1709947109318,-558.21645623,0.00018888,2]
[317835364,1709947109338,-401.30154956,0.00018888,2]
[317835365,1709947109361,-1950.95817719,0.00018889,2]
[317835366,1709947109382,-176.41411874,0.00018889,2]
[317835367,1709947109402,-211.97574014,0.00018889,2]
[317835368,1709947109422,-528.48551733,0.0001889,2]
[317835369,1709947109443,-155.13962566,0.0001889,2]
[317835370,1709947109463,-745.65931905,0.00018891,2]
[317835371,1709947109483,-1606.2288853,0.00018891,2]
[317835372,1709947109503,-484.13272849,0.00018892,2]
[317835373,1709947185009,-186.40511874,0.00018884,2]